bitfinex/quotes_ETHUSD_20250106
["timestamp","ask_amount","ask_price","bid_price","bid_amount"]
[1736197027236,7.77810693,3682.4,3682.3,35.0]
[1736197028388,7.77810693,3682.4,3681.2,1.3105943]
[1736197028389,2.71628,3681.5,3681.4,0.188]
[1736197028540,5.30598996,3681.5,3681.4,0.188]
[1736197029169,3.09389661,3681.5,3681.4,0.188]
[1736197029344,3.09389661,3681.5,3681.4,35.188]
[1736197029666,4.02775413,3681.5,3681.4,35.188]
[1736197030754,3.09389661,3681.5,3681.4,35.188]
[1736197031651,0.50418665,3681.5,3681.4,35.188]
[1736197032273,0.25217625,3681.5,3681.4,35.188]
[1736197032465,0.25217625,3681.5,3681.4,36.5642]
[1736197033700,1.12904857,3681.9,3681.5,0.55]
[1736197034182,0.25189592,3681.8,3681.5,0.55]
[1736197034346,0.25189592,3681.8,3681.7,35.55]
[1736197034678,1.12904857,3682.3,3681.9,0.7941]
[1736197034901,1.12904857,3682.3,3682.0,0.55]
[1736197035375,2.58970996,3682.1,3681.9,0.9821]
[1736197035554,2.58970996,3682.1,3681.9,0.188]
[1736197035755,5.97423559,3682.1,3682.0,35.0]
[1736197036279,6.22609769,3682.1,3682.0,35.0]
[1736197036441,5.55745206,3682.1,3682.0,35.0]
[1736197036638,5.80930064,3682.1,3682.0,35.0]
[1736197037276,8.14301462,3682.1,3682.0,35.0]
[1736197037485,2.83742466,3682.1,3682.0,35.0]
[1736197038509,0.50371068,3682.1,3682.0,35.0]
[1736197039174,5.80926064,3682.1,3682.0,35.0]
[1736197039558,3.09342064,3682.1,3682.0,35.0]
[1736197040285,5.80926064,3682.1,3682.0,35.0]
[1736197040477,6.74260815,3682.1,3682.0,35.0]
[1736197041575,7.69911184,3682.1,3682.0,35.0]
[1736197042255,10.22795794,3682.1,3682.0,35.0]
[1736197043087,10.22795794,3682.1,3682.0,35.0275]
[1736197043556,10.79267489,3682.1,3682.0,35.0275]
[1736197043956,11.58257489,3682.1,3682.0,35.0275]
[1736197045185,11.75632902,3682.1,3682.0,35.0275]
[1736197045888,2.71606,3681.8,3681.7,2.0]
[1736197046052,7.50066886,3681.8,3681.7,2.0]
[1736197046349,2.71687,3680.7,3680.6,1.13705963]
[1736197046555,2.71694,3680.6,3680.5,1.13705963]
[1736197046760,2.75090352,3680.6,3680.5,1.13705963]
[1736197046959,2.75090352,3680.6,3680.5,36.13705963]
[1736197047189,3.83368518,3680.6,3680.5,36.13705963]
[1736197047377,4.65958518,3680.6,3680.5,36.13705963]
[1736197047600,4.91143376,3680.6,3680.5,36.13705963]
[1736197048106,7.24477147,3680.6,3680.5,35.0]
[1736197048393,7.21080795,3680.6,3680.5,35.0]
[1736197049891,6.37988839,3680.6,3680.5,35.0]
[1736197050106,5.55398839,3680.6,3680.5,35.0]
[1736197050294,2.83704839,3680.6,3680.5,35.0]
[1736197050954,2.58518629,3680.6,3680.5,35.0]
[1736197051155,1.65183878,3680.6,3680.5,35.0]
[1736197051767,0.25184858,3680.6,3680.5,35.0]
[1736197052055,2.96878858,3680.6,3680.5,35.0]
[1736197052795,2.71694,3680.6,3680.5,35.0]
[1736197054022,3.00185145,3680.6,3680.5,35.0]
[1736197055435,0.25094933,3680.6,3680.5,35.0]
[1736197056634,2.96788933,3680.6,3680.5,35.0]
[1736197056837,3.00185223,3680.6,3680.5,35.0]
[1736197059051,3.00185223,3680.6,3680.5,35.0376]
[1736197060456,4.63238445,3680.6,3680.5,35.0376]
[1736197060627,4.88331358,3680.6,3680.5,35.0376]
[1736197060950,2.96786913,3680.6,3680.5,35.0376]
[1736197061121,2.71694,3680.6,3680.5,35.0376]
[1736197061325,2.58970996,3680.7,3680.5,35.0376]
[1736197061532,2.58970996,3680.7,3680.5,0.0376]
[1736197061913,5.30657996,3680.7,3680.6,35.0]
[1736197062648,5.80841162,3680.7,3680.6,35.0]
[1736197070814,3.09154162,3680.7,3680.6,35.0]
[1736197071021,0.50183166,3680.7,3680.6,35.0]
[1736197071342,0.50183166,3680.7,3680.6,35.7821]
[1736197071730,5.80841162,3680.7,3680.6,35.7821]
[1736197073264,5.80841162,3680.7,3680.6,36.31421582]
[1736197073831,5.80841162,3680.7,3680.6,35.53211582]
[1736197074140,5.80841162,3680.7,3680.6,35.0]
[1736197074651,6.66092178,3680.7,3680.6,35.0]
[1736197074827,7.45812178,3680.7,3680.6,35.0]
[1736197075227,6.60561162,3680.7,3680.6,35.0]
[1736197077431,6.3546964,3680.7,3680.6,35.0]
[1736197077833,7.28363182,3680.7,3680.6,35.0]
[1736197081467,8.6772583,3680.7,3680.6,35.0]
[1736197082570,11.6772583,3680.7,3680.6,35.0]
[1736197082747,13.77066646,3680.7,3680.6,35.0]
[1736197083082,13.77066646,3680.7,3679.9,0.188]
[1736197083282,13.77066646,3680.7,3679.9,0.18593672]
[1736197083283,5.30709996,3680.0,3679.9,0.18593672]
[1736197084083,2.71753,3679.8,3679.7,0.9732]
[1736197084283,2.71753,3679.8,3679.7,0.188]
[1736197084581,2.96844644,3679.8,3679.7,35.188]
[1736197088586,0.25091644,3679.8,3679.7,35.188]
[1736197092160,0.25091644,3679.8,3679.7,36.5258]
[1736197092517,0.25091644,3679.8,3679.7,39.5333]
[1736197092710,0.25091644,3679.8,3679.7,42.25091]
[1736197092855,0.25091644,3680.1,3679.8,6.2675]
[1736197093210,1.12408594,3680.2,3680.0,0.55]
[1736197093386,1.12408594,3680.2,3680.0,0.7616]
[1736197093553,2.25809714,3680.6,3680.2,0.55]
[1736197093554,1.12408594,3680.6,3680.2,0.55]
[1736197093750,3.84107594,3680.6,3680.2,0.55]
[1736197093955,3.84107594,3680.6,3680.1,0.55]
[1736197094151,2.58970996,3680.5,3680.1,0.55]
[1736197094470,2.71731,3680.1,3679.9,0.188]
[1736197094668,2.71739,3680.0,3679.9,0.188]
[1736197094854,2.71739,3680.0,3679.9,35.188]
[1736197095458,2.9688405,3680.0,3679.9,35.188]
[1736197095758,2.9688405,3680.0,3679.9,35.0]
[1736197096773,5.2975237,3680.0,3679.9,35.0]
[1736197097705,2.5801337,3680.0,3679.9,35.0]
[1736197098096,1.18292378,3680.0,3679.9,35.0]
[1736197098591,3.90031378,3680.0,3679.9,35.0]
[1736197098790,1.18292378,3680.0,3679.9,35.0]
[1736197099707,0.2514505,3680.0,3679.9,35.0]
[1736197099899,3.64881328,3680.1,3679.9,35.0]
[1736197100098,0.2514475,3680.0,3679.7,0.0376]
[1736197100310,0.2514475,3680.0,3679.8,0.7937]
[1736197100509,0.2514475,3680.0,3679.9,35.0]
[1736197102421,2.9688375,3680.0,3679.9,35.0]
[1736197102596,4.84377769,3680.0,3679.9,35.0]
[1736197102926,5.61077769,3680.0,3679.9,35.0]
[1736197103301,5.61827769,3680.0,3679.9,35.0]
[1736197104324,5.61827769,3680.0,3678.8,1.32505963]
[1736197104325,2.7182,3678.9,3678.8,1.32505963]
[1736197104624,5.65807996,3678.9,3678.8,0.188]
[1736197104799,5.30790996,3678.9,3678.8,0.188]
[1736197105123,5.55935746,3678.9,3678.8,0.188]
[1736197105330,5.55935746,3678.9,3678.8,35.0]
[1736197107432,5.96121138,3678.9,3678.8,35.0]
[1736197109136,3.24301138,3678.9,3678.8,35.0]
[1736197109338,0.65330142,3678.9,3678.8,35.0]
[1736197109525,0.65330142,3678.9,3678.8,35.7961]
[1736197110142,1.12576258,3679.3,3678.8,35.7961]
[1736197110445,0.25091106,3679.2,3678.8,0.7961]
[1736197110741,0.25091106,3679.2,3679.1,35.0]
[1736197111149,2.71783,3679.4,3679.1,35.0]
[1736197111319,2.71783,3679.4,3678.8,0.7961]
[1736197111806,0.65240909,3679.3,3678.8,0.7961]
[1736197112245,0.65240909,3679.3,3679.2,35.0]
[1736197113146,3.37030909,3679.3,3679.2,35.0]
[1736197113316,5.0650784,3679.3,3679.2,35.0]
[1736197113702,0.65240909,3679.3,3679.2,35.0]
[1736197115174,0.03397502,3679.4,3679.2,35.0]
[1736197115462,0.40136009,3679.3,3678.7,0.7884]
[1736197115660,0.65221014,3679.3,3678.7,0.7884]
[1736197115965,0.65221014,3679.3,3679.2,35.0]
[1736197116165,2.71788,3679.4,3679.2,35.0]
[1736197116669,0.25086339,3679.3,3678.7,0.7884]
[1736197117054,0.25086339,3679.3,3679.2,35.0]
[1736197117232,2.58970996,3679.5,3679.2,35.0]
[1736197117567,2.58970996,3679.5,3679.0,0.54189119]
[1736197117751,2.58970996,3679.5,3679.1,0.7988]
[1736197117752,0.25087241,3679.4,3679.1,0.7988]
[1736197117935,0.25087241,3679.4,3679.3,35.0]
[1736197118444,0.25087241,3679.4,3679.3,35.55]
[1736197118642,2.71741,3680.0,3679.4,1.344]
[1736197119328,2.71741,3680.0,3679.9,35.0]
[1736197119848,3.36976594,3680.0,3679.9,35.0]
[1736197122546,3.40373431,3680.0,3679.9,35.0]
[1736197122968,5.72869681,3680.0,3679.9,35.0]
[1736197123160,5.69472844,3680.0,3679.9,35.0]
[1736197124776,5.69472844,3680.0,3679.9,35.0273]
[1736197125168,5.29327863,3680.0,3679.9,35.0273]
[1736197125337,5.32724698,3680.0,3679.9,35.0273]
[1736197125954,5.29327863,3680.0,3679.9,35.0273]
[1736197126780,5.32724697,3680.0,3679.9,35.0273]
[1736197127174,6.67210531,3680.0,3679.9,35.0273]
[1736197127379,6.63813697,3680.0,3679.9,35.0273]
[1736197128480,7.41583697,3680.0,3679.9,35.0273]
[1736197129996,5.29327863,3680.0,3679.9,35.0273]
[1736197130583,6.9819225,3680.0,3679.9,35.0273]
[1736197130792,4.2645125,3680.0,3679.9,35.5773]
[1736197131091,4.2645125,3680.0,3679.9,39.06926]
[1736197131288,4.01360637,3680.0,3679.9,39.06926]
[1736197131900,1.12526081,3680.7,3680.1,0.8007]
[1736197132086,1.12526081,3680.7,3680.2,0.738]
[1736197132523,0.25129014,3680.6,3680.2,0.738]
[1736197133124,0.25129014,3680.5,3680.2,0.738]
[1736197133434,0.25129014,3680.5,3680.4,0.55584995]
[1736197135630,0.25129014,3680.5,3680.4,1.31530495]
[1736197135813,0.25129014,3680.5,3680.4,2.14400495]
[1736197136205,5.30628996,3681.1,3680.4,2.14400495]
[1736197136399,5.30628996,3681.1,3680.4,1.93454995]
[1736197136939,0.25094037,3681.0,3680.4,1.93454995]
[1736197137839,0.25094037,3680.9,3680.4,1.93454995]
[1736197138340,0.25094037,3680.8,3680.4,1.93454995]
[1736197138731,2.71658,3681.1,3680.4,1.93454995]
[1736197139241,2.71658,3681.1,3680.5,0.55]
[1736197139440,0.25086725,3681.0,3680.5,0.55]
[1736197140208,0.25086725,3681.0,3680.5,1.361]
[1736197140410,2.58970996,3680.7,3680.0,0.7959]
[1736197140707,2.58970996,3680.4,3680.1,0.188]
[1736197140941,0.37511338,3680.6,3680.1,0.188]
[1736197141310,2.7171,3680.4,3680.1,0.72730666]
[1736197141707,2.71696,3680.6,3680.1,0.72730666]
[1736197141904,0.25085483,3680.3,3680.1,0.72730666]
[1736197142745,0.25085483,3680.3,3680.2,0.55]
[1736197142918,1.88046081,3681.1,3680.2,0.55]
[1736197143121,0.03395967,3681.0,3680.2,0.55]
[1736197143319,1.12526081,3681.1,3680.3,0.8046]
[1736197143544,0.25094927,3680.9,3680.5,0.8046]
[1736197143743,0.25094927,3680.9,3680.8,0.55]
[1736197144091,1.12526081,3681.1,3681.0,4.10255]
[1736197144366,2.81440645,3681.6,3681.5,1.3784]
[1736197144367,1.12526081,3681.6,3681.5,1.3784]
[1736197145421,1.12526081,3681.6,3681.5,6.69188996]
[1736197145624,1.12526081,3681.6,3681.5,9.69188996]
[1736197145822,1.12526081,3683.1,3681.8,2.71604]
[1736197146020,2.71527,3682.9,3682.2,0.55]
[1736197146225,1.12526081,3683.1,3682.2,0.55]
[1736197146655,2.71533,3682.8,3682.2,0.55]
[1736197147218,0.833,3683.2,3682.2,0.55]
[1736197147219,2.71518,3683.0,3682.2,0.55]
[1736197147420,2.7153,3682.9,3682.4,0.55]
[1736197147724,2.58970996,3683.1,3682.2,0.55365484]
[1736197147725,2.71539,3682.8,3682.2,0.55365484]
[1736197148367,2.74917028,3683.0,3682.3,0.55]
[1736197148666,1.857942,3683.3,3682.5,0.55]
[1736197149472,3.83972081,3684.0,3683.0,1.3587]
[1736197149640,0.03393258,3683.9,3683.2,0.55]
[1736197149835,0.7995,3684.2,3683.2,0.55]
[1736197150168,2.71432,3684.2,3683.2,0.55]
[1736197150977,2.71432,3684.2,3683.3,0.8326]
[1736197151152,2.71432,3684.2,3683.7,0.54866919]
[1736197151478,0.30536245,3684.1,3683.3,0.8326]
[1736197151635,2.7146,3683.8,3683.7,0.188]
[1736197152042,2.71444,3684.0,3683.7,0.188]
[1736197152344,2.71444,3684.0,3683.3,0.8326]
[1736197152345,0.271432,3684.1,3683.8,0.188]
[1736197152769,2.71445,3684.0,3683.8,0.188]
[1736197152937,2.71445,3684.0,3683.9,35.0]
[1736197153141,3.01972268,3684.1,3683.9,35.0]
[1736197153337,0.03393068,3684.4,3683.8,0.188]
[1736197153553,2.71429,3684.2,3683.8,0.188]
[1736197153773,2.71429,3684.2,3684.1,35.0]
[1736197153978,0.33941406,3684.4,3684.1,35.0]
[1736197154181,2.58970996,3685.4,3683.9,0.7856]
[1736197154367,2.71397,3684.7,3683.9,0.7856]
[1736197154570,0.03392618,3685.1,3684.0,0.55]
[1736197154740,2.71357,3685.2,3685.0,35.0]
[1736197155199,2.71342,3685.4,3684.7,0.9736]
[1736197155486,2.71342,3685.4,3684.8,0.188]
[1736197155487,0.03392083,3685.3,3684.8,0.188]
[1736197155846,2.74743083,3685.3,3684.8,0.188]
[1736197156049,2.74743083,3685.3,3685.2,35.0]
[1736197156254,2.71351,3685.3,3685.2,35.0]
[1736197156940,0.03392012,3685.6,3685.2,35.0]
[1736197156941,2.74722012,3685.6,3685.2,35.0]
[1736197157145,2.71283,3686.2,3684.9,0.55]
[1736197157464,0.03391355,3686.3,3685.4,0.7856]
[1736197157685,2.74666355,3686.3,3686.1,35.0]
[1736197158067,2.7123,3686.9,3685.8,0.188]
[1736197158068,0.03391201,3686.7,3685.8,0.188]
[1736197158382,0.767,3686.9,3685.9,0.55]
[1736197158694,0.767,3686.9,3686.6,35.0]
[1736197158907,0.767,3686.9,3685.9,0.55]
[1736197159176,3.47931,3686.9,3685.9,0.55]
[1736197159377,2.58970996,3686.5,3685.8,0.188]
[1736197159547,2.58970996,3686.2,3685.2,0.188]
[1736197159744,2.71317,3685.8,3685.2,0.188]
[1736197159984,0.0339163,3686.1,3685.7,35.0]
[1736197159985,2.71291,3686.1,3685.7,35.0]
[1736197160306,0.7624,3686.3,3684.5,0.7945]
[1736197160307,2.58970996,3685.8,3684.5,0.7945]
[1736197160468,2.74711786,3685.7,3685.0,0.188]
[1736197160644,0.03391786,3685.7,3685.0,0.188]
[1736197160846,2.74703688,3685.8,3685.6,35.0]
[1736197161046,2.71312,3685.8,3685.6,35.0]
[1736197161312,2.62362592,3686.1,3684.8,0.55151976]
[1736197161587,2.71333,3685.5,3685.3,0.188]
[1736197161887,0.7936,3685.3,3684.1,0.7953]
[1736197162111,2.71422,3684.3,3683.8,0.188]
[1736197162313,0.03392854,3684.4,3684.2,35.0]
[1736197162472,0.03392485,3685.2,3684.2,35.0]
[1736197162644,0.03392485,3685.2,3683.9,0.74179922]
[1736197162867,0.03392485,3685.2,3684.0,0.55]
[1736197163070,2.74747485,3685.2,3685.1,35.0]
[1736197163293,2.71355,3685.2,3685.1,35.0]
[1736197164169,0.7602,3685.7,3685.1,35.0]
[1736197164366,0.7602,3685.7,3684.7,0.5402853]
[1736197164367,0.7602,3686.1,3685.0,2.71365]
[1736197164574,0.03391571,3686.0,3685.0,0.55]
[1736197164771,2.74688467,3686.0,3685.9,35.0]
[1736197165004,2.71297,3686.0,3685.9,35.0]
[1736197165800,5.8022501,3686.0,3685.9,35.0]
[1736197166115,5.768336,3686.0,3685.9,35.0]
[1736197166280,3.3658236,3686.0,3685.9,35.0]
[1736197166483,3.61421814,3686.0,3685.9,35.0]
[1736197166671,6.70349811,3686.0,3685.9,35.0]
[1736197167005,6.70349811,3686.0,3685.1,0.0273]
[1736197167006,2.71315,3685.8,3685.1,0.0273]
[1736197167212,3.055366,3685.6,3685.1,0.0273]
[1736197167381,0.3428476,3685.5,3685.1,0.0273]
[1736197167587,0.30892833,3685.5,3685.1,0.0273]
[1736197167907,3.02225833,3685.5,3685.4,35.0]
[1736197168782,0.30892833,3685.5,3685.4,35.0]
[1736197169013,5.768326,3686.0,3685.4,35.0]
[1736197169312,5.768326,3686.0,3685.1,0.8215]
[1736197169609,2.71304,3685.9,3685.1,0.8215]
[1736197169794,0.7602,3686.1,3685.1,0.8215]
[1736197169795,3.055366,3685.3,3685.1,0.0273]
[1736197170181,3.055366,3685.3,3685.2,35.0]
[1736197170386,2.71327,3685.6,3685.2,35.0]
[1736197170589,2.71327,3685.6,3685.1,0.0273]
[1736197170590,0.29621936,3685.6,3685.1,0.0273]
[1736197170797,2.71311,3685.9,3685.1,0.0273]
[1736197171108,2.71311,3685.9,3685.8,35.0]
[1736197172012,2.96241808,3685.9,3685.8,35.0]
[1736197173384,2.96991808,3685.9,3685.8,35.0]
[1736197175908,2.96241808,3685.9,3685.8,35.0]
[1736197176211,0.24930808,3685.9,3685.8,35.0]
[1736197176707,2.96234808,3685.9,3685.8,35.0]
[1736197177084,0.24930808,3685.9,3685.8,35.0]
[1736197177813,0.24930808,3685.9,3685.8,36.3087]
[1736197183149,0.24930808,3685.9,3685.8,39.02181]
[1736197183447,0.24930808,3685.9,3685.8,39.02931]
[1736197183622,0.24930808,3685.9,3685.8,42.02931]
[1736197183925,0.03390525,3687.5,3685.8,42.02931]
[1736197184124,2.71201,3687.3,3686.3,0.7712]
[1736197184317,2.71201,3687.3,3686.4,0.55]
[1736197184615,0.7613,3687.6,3687.2,35.0]
[1736197184817,2.712,3687.4,3687.2,35.0]
[1736197185010,2.71166,3687.8,3686.8,0.55]
[1736197185211,2.71172,3687.7,3686.8,0.55]
[1736197185425,0.03389767,3688.1,3687.6,35.0]
[1736197185631,0.03690178,3688.4,3687.7,0.198]
[1736197185806,2.71136,3688.2,3687.7,0.198]
[1736197186006,2.71622,3688.4,3687.7,0.198]
[1736197186204,0.005,3688.4,3687.7,0.198]
[1736197186633,0.005,3688.4,3687.8,0.55]
[1736197187739,0.005,3688.4,3688.0,1.3832]
[1736197188846,0.005,3688.4,3687.4,2.71186]
[1736197188847,0.7801,3688.3,3687.6,1.37693368]
[1736197189021,2.71171,3687.7,3687.6,0.54373368]
[1736197189747,2.71183,3687.6,3687.4,0.198]
[1736197189974,2.74543593,3688.0,3687.3,0.198]
[1736197190115,2.71202,3687.3,3687.0,0.55]
[1736197190320,2.71223,3687.0,3685.9,0.7747]
[1736197190638,2.71267,3686.4,3685.9,0.7747]
[1736197190824,2.71237,3686.8,3685.9,0.7747]
[1736197191028,3.055366,3686.7,3685.9,0.7747]
[1736197191228,2.7129,3686.1,3685.9,0.7747]
[1736197191461,2.71296,3686.0,3685.8,0.198]
[1736197191960,3.08927663,3685.9,3685.3,0.198]
[1736197192167,3.055366,3685.9,3685.3,0.198]
[1736197192325,0.8021,3686.2,3685.1,0.55]
[1736197192530,0.8021,3686.2,3685.2,0.198]
[1736197192531,2.71312,3685.8,3685.2,0.198]
[1736197192743,3.055366,3685.9,3685.2,0.198]
[1736197192908,2.71291,3686.1,3685.2,0.198]
[1736197193261,2.71283,3686.2,3685.3,0.55]
[1736197193461,2.71283,3686.2,3685.0,0.5575]
[1736197193660,2.71283,3686.2,3685.5,0.55]
[1736197194243,2.71292,3686.1,3685.5,0.55]
[1736197194680,2.71274,3686.4,3685.5,0.55]
[1736197194976,2.71274,3686.4,3685.4,0.198]
[1736197194977,2.71274,3686.4,3685.7,0.55]
[1736197195171,2.71274,3686.4,3685.0,0.0075]
[1736197195172,2.71367,3685.1,3684.2,0.7584]
[1736197195313,3.0,3684.7,3683.8,0.22]
[1736197195627,2.71321,3685.7,3683.9,0.5513923]
[1736197195983,3.48325,3685.8,3684.0,3.0]
[1736197196184,3.825466,3686.2,3684.4,0.0075]
[1736197196450,2.71307,3685.9,3684.8,0.7782]
[1736197196636,2.71316,3685.8,3684.9,0.784]
[1736197196839,1.11272229,3686.2,3685.0,0.0075]
[1736197197149,1.11272229,3686.2,3685.4,1.3874]
[1736197197314,1.11272229,3686.2,3685.5,0.55]
[1736197197513,1.11272229,3686.2,3685.6,0.0075]
[1736197197732,0.8049,3687.2,3685.3,3.055366]
[1736197197733,1.91762229,3687.7,3686.2,0.55]
[1736197197935,0.03390205,3687.6,3686.4,0.55]
[1736197198135,2.71204,3687.3,3686.4,0.55]
[1736197198654,2.71204,3687.3,3685.8,0.8299]
[1736197198655,0.03390205,3687.2,3685.8,1.0639]
[1736197198865,0.7643,3687.1,3685.8,1.0639]
[1736197199019,2.71261,3686.5,3685.8,1.0639]
[1736197199349,3.47647,3687.1,3685.8,1.0639]
[1736197199350,0.03390986,3686.4,3685.8,1.0639]
[1736197199556,2.71287,3686.2,3685.8,0.234]
[1736197199848,2.71253,3686.6,3685.8,0.234]
[1736197199849,2.71291,3686.1,3685.8,0.234]
[1736197200020,0.03391191,3686.5,3685.8,0.234]
[1736197200221,0.03391191,3686.5,3686.0,35.0]
[1736197200554,0.8159,3686.5,3685.3,0.76]
[1736197200750,0.72104109,3686.4,3685.3,0.76]
[1736197201118,0.8159,3686.5,3686.3,35.0]
[1736197201439,0.791,3686.9,3685.4,0.55]
[1736197201753,1.11272229,3687.3,3686.0,0.55]
[1736197201953,1.11272229,3687.3,3687.2,35.0]
[1736197203160,0.03389944,3687.4,3687.2,35.0]
[1736197203328,0.30338994,3687.3,3686.6,0.234]
[1736197203520,0.03390199,3687.4,3686.6,0.234]
[1736197203721,0.03390199,3687.4,3687.3,35.0]
[1736197203919,0.8362,3688.1,3687.3,35.0]
[1736197203920,0.03390152,3687.7,3687.3,35.0]
[1736197204158,0.03390152,3687.7,3686.7,0.55]
[1736197204370,0.03390145,3688.0,3686.7,0.55]
[1736197204657,0.23143382,3688.0,3686.7,0.55]
[1736197204870,0.03390145,3688.0,3687.9,35.0]
[1736197205038,0.8287,3688.1,3687.9,35.0]
[1736197205561,0.8287,3688.1,3687.1,0.7509]
[1736197205964,0.03389591,3688.2,3687.1,0.7509]
[1736197206136,0.03389591,3688.2,3688.0,35.0]
[1736197206337,0.005,3688.4,3688.1,0.7853]
[1736197206536,0.005,3688.4,3688.2,0.234]
[1736197206830,0.005,3688.4,3688.1,0.7853]
[1736197206831,0.005,3688.4,3688.3,35.0]
[1736197207035,6.855166,3688.4,3687.3,0.234]
[1736197207265,3.055366,3688.0,3686.9,0.8277]
[1736197207433,0.7948,3687.8,3686.8,0.234]
[1736197207639,3.062866,3687.6,3685.3,4.73774843]
[1736197207835,3.03390589,3687.5,3685.9,0.234]
[1736197208067,3.03390589,3687.5,3687.0,35.0]
[1736197208268,0.60967719,3687.4,3687.0,35.0]
[1736197208477,0.03390512,3687.3,3686.9,0.0273]
[1736197208974,0.03390285,3687.7,3687.2,35.0]
[1736197209334,0.03390285,3687.7,3686.9,0.0273]
[1736197209648,0.03390322,3687.7,3686.9,0.0273]
[1736197209965,0.03390322,3687.7,3687.6,35.0]
[1736197210169,0.7948,3687.8,3687.6,35.0]
[1736197210370,0.98555223,3687.8,3686.9,0.0273]
[1736197210579,0.7948,3687.8,3687.0,0.234]
[1736197210778,1.11772229,3688.4,3687.7,35.0]
[1736197211185,0.03389515,3688.3,3687.3,0.55]
[1736197212015,0.03389515,3688.3,3688.2,35.0]
[1736197212275,3.03389515,3688.3,3688.2,35.0]
[1736197212798,3.72319127,3688.3,3688.2,35.0]
[1736197213087,3.68929612,3688.3,3688.2,35.0]
[1736197213257,3.0,3688.3,3688.2,35.0]
[1736197213586,3.03389305,3688.3,3688.2,35.0]
[1736197214379,0.005,3688.4,3688.2,35.0]
[1736197214555,0.005,3688.4,3687.3,0.55]
[1736197214946,0.005,3688.4,3688.3,35.0]
[1736197215683,6.44412514,3688.4,3687.2,0.7584]
[1736197215846,3.0,3687.9,3687.0,0.234]
[1736197216042,0.03389891,3687.8,3686.9,0.0273]
[1736197216277,0.03389891,3687.8,3687.0,0.234]
[1736197216795,0.03389891,3687.8,3687.7,35.0]
[1736197216944,0.03389625,3688.3,3687.7,35.0]
[1736197217144,0.34780214,3688.2,3687.1,0.234]
[1736197217346,0.03389625,3688.1,3687.1,0.234]
[1736197217640,0.03389625,3688.1,3688.0,35.0]
[1736197217873,0.38169709,3688.2,3688.0,35.0]
[1736197218183,0.38169709,3688.2,3687.1,0.234]
[1736197218355,0.64420631,3688.1,3687.1,0.234]
[1736197218562,0.005,3688.4,3688.0,35.0]
[1736197219058,0.005,3688.4,3688.1,0.55]
[1736197219265,0.005,3688.4,3688.2,0.234]
[1736197219468,0.005,3688.4,3688.3,35.55]
[1736197220249,0.005,3688.4,3688.3,36.3512]
[1736197220649,0.005,3688.4,3688.3,35.0]
[1736197221359,0.005,3688.4,3688.3,35.55]
[1736197222085,0.005,3688.4,3688.3,35.0]
[1736197222589,6.060366,3688.4,3688.3,35.0]
[1736197222789,6.6664026,3688.4,3688.3,35.0]
[1736197223303,0.6110366,3688.4,3688.3,35.0]
[1736197223504,0.005,3688.4,3688.3,35.0]
[1736197224809,0.005,3688.4,3688.3,35.55]
[1736197225307,0.005,3688.4,3688.3,36.3723]
[1736197225874,0.005,3688.4,3688.3,36.3648]
[1736197226476,0.005,3688.4,3688.3,36.3723]
[1736197226676,0.005,3688.4,3688.3,36.3648]
[1736197227295,0.005,3688.4,3688.3,36.3921]
[1736197231029,0.005,3688.4,3688.3,35.8421]
[1736197231316,0.005,3688.4,3688.3,36.3996]
[1736197232082,0.005,3688.4,3688.3,36.3921]
[1736197233716,0.005,3688.4,3688.3,35.0273]
[1736197233904,0.005,3688.4,3688.3,35.2713]
[1736197234356,0.005,3688.4,3688.3,35.8213]
[1736197235024,2.7162,3688.4,3688.3,35.0273]
[1736197235201,0.27662,3688.4,3688.3,35.0273]
[1736197235520,0.005,3688.4,3688.3,35.0273]
[1736197235930,2.7162,3688.4,3688.3,35.0273]
[1736197236298,0.005,3688.4,3688.3,35.0273]
[1736197237143,0.005,3688.4,3688.3,35.5773]
[1736197237294,0.005,3688.4,3688.3,36.3594]
[1736197237625,0.005,3688.4,3688.3,35.5773]
[1736197238613,0.005,3688.4,3688.3,35.0273]
[1736197239919,0.005,3688.4,3688.3,35.5773]
[1736197240230,0.005,3688.4,3688.3,36.342]
[1736197240593,0.005,3688.4,3688.3,39.06077]
[1736197241424,0.005,3688.4,3688.3,36.3495]
[1736197243018,0.005,3688.4,3688.3,36.342]
[1736197244793,0.005,3688.4,3688.3,36.3495]
[1736197245393,0.005,3688.4,3688.3,39.07577]
[1736197245647,0.625,3689.6,3689.2,0.0075]
[1736197245793,0.625,3689.6,3689.4,0.55]
[1736197246335,0.625,3689.6,3689.5,35.55]
[1736197247996,0.625,3689.6,3689.5,35.0]
[1736197248625,4.14962,3689.6,3689.5,35.0]
[1736197248830,0.625,3689.6,3689.5,35.0]
[1736197249369,0.625,3689.6,3689.5,35.55]
[1736197251070,0.625,3689.6,3689.5,35.5575]
[1736197251209,0.625,3689.6,3689.5,39.05269]
[1736197252335,0.625,3689.6,3689.5,36.3423]
[1736197253219,0.625,3689.6,3689.5,35.55]
[1736197253415,0.625,3689.6,3689.5,35.244]
[1736197254216,0.625,3689.6,3689.5,35.794]
[1736197256124,0.625,3689.6,3689.5,35.8015]
[1736197256457,0.625,3689.6,3689.5,38.51189]
[1736197256658,0.625,3689.6,3689.5,35.8015]
[1736197257658,0.625,3689.6,3689.5,35.0]